bitfinex/quotes_BTCUSD_20240820
["timestamp","ask_amount","ask_price","bid_price","bid_amount"]
[1724122591570,1.34885819,60610.0,60609.0,0.0009075]
[1724122591808,1.34585574,60610.0,60609.0,0.0009075]
[1724122592406,1.34285574,60610.0,60609.0,0.0009075]
[1724122592629,1.24692604,60610.0,60609.0,0.0009075]
[1724122592852,1.31781481,60610.0,60609.0,0.0009075]
[1724122593082,1.34154947,60610.0,60609.0,0.0009075]
[1724122593496,1.3208141,60610.0,60609.0,0.0009075]
[1724122593699,1.24661977,60610.0,60609.0,0.0009075]
[1724122593938,1.32081486,60610.0,60609.0,0.0009075]
[1724122594296,1.31681486,60610.0,60609.0,0.0009075]
[1724122594506,1.31681399,60610.0,60609.0,0.0009075]
[1724122594704,0.99383599,60610.0,60609.0,0.0019075]
[1724122595067,0.84844177,60610.0,60609.0,0.0009075]
[1724122595203,0.9049009,60610.0,60609.0,0.0019075]
[1724122595662,0.9129009,60610.0,60609.0,0.0029075]
[1724122596068,0.9059009,60610.0,60609.0,0.0019075]
[1724122596269,0.9049009,60610.0,60609.0,0.0019075]
[1724122596963,0.15728513,60610.0,60609.0,0.0019075]
[1724122597135,0.16528513,60610.0,60609.0,0.0029075]
[1724122597335,0.19000921,60610.0,60609.0,0.0029075]
[1724122597534,0.18200921,60610.0,60609.0,0.0019075]
[1724122597740,0.17500921,60610.0,60609.0,0.0009075]
[1724122597975,0.17500921,60610.0,60609.0,0.0019075]
[1724122598180,0.18200921,60610.0,60609.0,0.0019075]
[1724122598591,0.18531548,60610.0,60609.0,0.0019075]
[1724122599219,0.18531548,60610.0,60609.0,0.3064985]
[1724122599220,0.09000921,60610.0,60609.0,0.3064985]
[1724122599429,0.04055008,60610.0,60609.0,0.1415075]
[1724122599659,0.03255008,60610.0,60609.0,0.1405075]
[1724122600011,0.04055008,60610.0,60609.0,0.1415075]
[1724122600445,0.03255008,60610.0,60609.0,0.1405075]
[1724122600816,0.02555008,60610.0,60609.0,0.1395075]
[1724122601021,0.03055008,60610.0,60609.0,0.1395075]
[1724122601218,0.03055008,60610.0,60609.0,0.0009075]
[1724122601425,0.02855008,60610.0,60609.0,0.0009075]
[1724122601629,0.03055008,60610.0,60609.0,0.0009075]
[1724122602282,0.02755008,60610.0,60609.0,0.0009075]
[1724122602434,0.19353908,60610.0,60609.0,0.0009075]
[1724122602816,0.02855008,60610.0,60609.0,0.0009075]
[1724122603362,0.02555008,60610.0,60609.0,0.0009075]
[1724122603768,0.03055008,60610.0,60609.0,0.0009075]
[1724122604167,0.02855008,60610.0,60609.0,0.0009075]
[1724122604629,0.03055008,60610.0,60609.0,0.0009075]
[1724122607963,0.10915008,60610.0,60609.0,0.0009075]
[1724122608184,0.27413908,60610.0,60609.0,0.0009075]
[1724122608589,0.60411708,60610.0,60609.0,0.0009075]
[1724122608790,0.27413908,60610.0,60609.0,0.0009075]
[1724122609004,0.27744535,60610.0,60609.0,0.0009075]
[1724122609334,1.17005012,60610.0,60609.0,0.0009075]
[1724122609558,1.31950284,60610.0,60609.0,0.0009075]
[1724122609760,1.27005012,60610.0,60609.0,0.0009075]
[1724122610359,1.26505012,60610.0,60609.0,0.0009075]
[1724122610598,1.26674385,60610.0,60609.0,0.0009075]
[1724122610828,1.27374385,60610.0,60609.0,0.0019075]
[1724122611003,0.3449956,60610.0,60609.0,0.0009075]
[1724122611404,0.1870066,60610.0,60609.0,0.0019075]
[1724122611620,0.1870066,60610.0,60609.0,0.0009075]
[1724122611953,0.3589956,60610.0,60609.0,0.0019075]
[1724122612099,0.3539956,60610.0,60609.0,0.0019075]
[1724122612479,0.3639956,60610.0,60609.0,0.0029075]
[1724122612930,0.3539956,60610.0,60609.0,0.0019075]
[1724122613335,0.3499956,60610.0,60609.0,0.0019075]
[1724122613714,0.3589956,60610.0,60609.0,0.0029075]
[1724122614108,0.1850066,60610.0,60609.0,0.0923075]
[1724122614463,0.1850066,60610.0,60609.0,0.2401075]
[1724122614464,0.14455008,60610.0,60609.0,0.2401075]
[1724122614666,0.04455008,60610.0,60609.0,0.2401075]
[1724122614866,0.14455008,60610.0,60609.0,0.2401075]
[1724122615411,0.14455008,60610.0,60609.0,0.1497075]
[1724122615679,0.14455008,60610.0,60609.0,0.2401075]
[1724122616235,0.14455008,60610.0,60609.0,0.1751075]
[1724122616492,0.04455008,60610.0,60609.0,0.0933075]
[1724122616730,0.14455008,60610.0,60609.0,0.0933075]
[1724122617024,0.14455008,60610.0,60609.0,0.0029075]
[1724122618992,0.04455008,60610.0,60609.0,0.0933075]
[1724122619215,0.14455008,60610.0,60609.0,0.0933075]
[1724122619777,0.14455008,60610.0,60609.0,0.1761075]
[1724122620509,0.04455008,60610.0,60609.0,0.1761075]
[1724122620827,0.14455008,60610.0,60609.0,0.6710815]
[1724122621227,0.14455008,60610.0,60609.0,0.3410985]
[1724122622008,0.04455008,60610.0,60609.0,0.3410985]
[1724122625369,0.04455008,60610.0,60609.0,0.2582985]
[1724122625744,0.04455008,60610.0,60609.0,0.0933075]
[1724122626095,0.04455008,60610.0,60609.0,0.0029075]
[1724122626336,0.30953908,60610.0,60609.0,0.0029075]
[1724122626511,0.81417212,60610.0,60609.0,0.0029075]
[1724122627118,0.86362864,60610.0,60609.0,0.0029075]
[1724122627366,0.81417212,60610.0,60609.0,0.0029075]
[1724122627566,1.21832921,60610.0,60609.0,0.0029075]
[1724122627765,1.29892921,60610.0,60609.0,0.0029075]
[1724122628341,1.36152921,60610.0,60609.0,0.0029075]
[1724122628555,1.46864226,60610.0,60609.0,0.0029075]
[1724122629301,1.47851209,60610.0,60609.0,0.0029075]
[1724122629516,1.35488027,60610.0,60609.0,0.0029075]
[1724122629696,1.47861354,60610.0,60609.0,0.0029075]
[1724122630323,1.47861342,60610.0,60609.0,0.0029075]
[1724122632161,1.64996219,60610.0,60609.0,0.0029075]
[1724122632369,1.67296219,60610.0,60609.0,0.0029075]
[1724122633413,1.50161342,60610.0,60609.0,0.0029075]
[1724122633785,1.49830715,60610.0,60609.0,0.0029075]
[1724122639648,1.49828574,60610.0,60609.0,0.0029075]
[1724122641445,1.374574,60610.0,60609.0,0.0029075]
[1724122642507,1.49828574,60610.0,60609.0,0.0029075]
[1724122642808,1.66963451,60610.0,60609.0,0.0029075]
[1724122643644,1.49828574,60610.0,60609.0,0.0029075]
[1724122644039,1.82826374,60610.0,60609.0,0.0029075]
[1724122644504,1.82824996,60610.0,60609.0,0.0029075]
[1724122647856,1.74584659,60610.0,60609.0,0.0029075]
[1724122648709,1.74584772,60610.0,60609.0,0.0029075]
[1724122649259,1.91719649,60610.0,60609.0,0.0029075]
[1724122649786,2.00000529,60610.0,60609.0,0.0029075]
[1724122653029,1.74585434,60610.0,60609.0,0.0029075]
[1724122653253,1.64689168,60610.0,60609.0,0.0029075]
[1724122653456,1.74585434,60610.0,60609.0,0.0029075]
[1724122654821,1.82864845,60610.0,60609.0,0.0029075]
[1724122655723,1.70695088,60610.0,60609.0,0.0029075]
[1724122655945,1.87729965,60610.0,60609.0,0.0029075]
[1724122657128,1.87829965,60610.0,60609.0,0.0029075]
[1724122658301,1.87729965,60610.0,60609.0,0.0029075]
[1724122658570,1.87829965,60610.0,60609.0,0.0029075]
[1724122659326,1.87729965,60610.0,60609.0,0.0029075]
[1724122659541,1.87829965,60610.0,60609.0,0.0029075]
[1724122659909,2.35771474,60610.0,60609.0,0.0029075]
[1724122660240,2.24845073,60610.0,60609.0,0.0029075]
[1724122660439,2.24745073,60610.0,60609.0,0.0029075]
[1724122660643,2.20727765,60610.0,60609.0,0.0029075]
[1724122661185,2.3963745,60610.0,60609.0,0.0029075]
[1724122661315,2.35771955,60610.0,60609.0,0.0029075]
[1724122661695,2.35771263,60610.0,60609.0,0.0029075]
[1724122661868,2.20927765,60610.0,60609.0,0.0029075]
[1724122662069,2.35771263,60610.0,60609.0,0.0029075]
[1724122662292,2.20927765,60610.0,60609.0,0.0029075]
[1724122662494,2.35771263,60610.0,60609.0,0.0029075]
[1724122662711,2.18636386,60610.0,60609.0,0.0029075]
[1724122662915,2.03792888,60610.0,60609.0,0.0029075]
[1724122663838,2.0768209,60610.0,60609.0,0.0029075]
[1724122664259,2.0748209,60610.0,60609.0,0.0029075]
[1724122664433,2.1739709,60610.0,60609.0,0.0029075]
[1724122664651,2.13507888,60610.0,60609.0,0.0029075]
[1724122666660,2.30842765,60610.0,60609.0,0.0029075]
[1724122666871,2.45685178,60610.0,60609.0,0.0029075]
[1724122667771,2.34684726,60610.0,60609.0,0.0029075]
[1724122671014,2.24161849,60610.0,60609.0,0.0029075]
[1724122672430,2.23939787,60610.0,60609.0,0.0029075]
[1724122672656,2.23739787,60610.0,60609.0,0.0029075]
[1724122674449,2.13929664,60610.0,60609.0,0.0029075]
[1724122674697,1.99087888,60610.0,60609.0,0.0029075]
[1724122674898,2.02955649,60610.0,60609.0,0.0029075]
[1724122675050,2.03055649,60610.0,60609.0,0.0029075]
[1724122675486,2.17897503,60610.0,60609.0,0.0029075]
[1724122675972,2.03055649,60610.0,60609.0,0.0029075]
[1724122676172,2.03155649,60610.0,60609.0,0.0029075]
[1724122676921,1.99287888,60610.0,60609.0,0.0029075]
[1724122677234,2.03156071,60610.0,60609.0,0.0029075]
[1724122677431,2.03056071,60610.0,60609.0,0.0029075]
[1724122677691,2.03156071,60610.0,60609.0,0.0029075]
[1724122679354,2.03056071,60610.0,60609.0,0.0029075]
[1724122679764,2.17897388,60610.0,60609.0,0.0029075]
[1724122680919,2.18095516,60610.0,60609.0,0.0029075]
[1724122681257,2.28439143,60610.0,60609.0,0.0029075]
[1724122681382,2.34659143,60610.0,60609.0,0.0029075]
[1724122682047,2.17524266,60610.0,60609.0,0.0029075]
[1724122682244,2.17824266,60610.0,60609.0,0.0029075]
[1724122683456,2.17524266,60610.0,60609.0,0.0029075]
[1724122684160,2.17824266,60610.0,60609.0,0.0029075]
[1724122684382,2.17724266,60610.0,60609.0,0.0029075]
[1724122684583,2.17824266,60610.0,60609.0,0.0029075]
[1724122685574,1.60041466,60610.0,60609.0,0.0029075]
[1724122686147,1.60141466,60610.0,60609.0,0.0029075]
[1724122686789,1.20877288,60610.0,60609.0,0.0662075]
[1724122687292,1.33243808,60610.0,60609.0,0.0662075]
[1724122687976,1.30770192,60610.0,60609.0,0.0662075]
[1724122688129,1.33070192,60610.0,60609.0,0.0662075]
[1724122689134,1.23177288,60610.0,60609.0,0.0662075]
[1724122691684,1.33070336,60610.0,60609.0,0.0662075]
[1724122691979,1.33070185,60610.0,60609.0,0.0662075]
[1724122692181,1.35543494,60610.0,60609.0,0.0662075]
[1724122693076,1.23177288,60610.0,60609.0,0.0662075]
[1724122694568,1.35543494,60610.0,60609.0,0.0662075]
[1724122694959,1.23177288,60610.0,60609.0,0.0662075]
[1724122695585,1.35543494,60610.0,60609.0,0.0662075]
[1724122698847,1.35544577,60610.0,60609.0,0.0662075]
[1724122701256,1.33071828,60610.0,60609.0,0.0662075]
[1724122701487,1.17371368,60610.0,60609.0,0.0662075]
[1724122701620,1.27265803,60610.0,60609.0,0.0662075]
[1724122702047,1.17371368,60610.0,60609.0,0.0662075]
[1724122702447,1.2726553,60610.0,60609.0,0.0662075]
[1724122702655,1.17371368,60610.0,60609.0,0.0662075]
[1724122705586,1.17371368,60610.0,60609.0,0.0029075]
[1724122705587,1.35687704,60610.0,60609.0,0.0029075]
[1724122705809,1.23419834,60610.0,60609.0,0.0029075]
[1724122706006,1.56417634,60610.0,60609.0,0.0029075]
[1724122706292,1.56317634,60610.0,60609.0,0.0029075]
[1724122706494,1.64337634,60610.0,60609.0,0.0029075]
[1724122707264,1.64237634,60610.0,60609.0,0.0029075]
[1724122707466,1.64337634,60610.0,60609.0,0.0029075]
[1724122707668,1.75405246,60610.0,60609.0,0.0029075]
[1724122707847,1.64337634,60610.0,60609.0,0.0029075]
[1724122710078,1.76704998,60610.0,60609.0,0.0029075]
[1724122710280,1.23319834,60610.0,60609.0,0.0029075]
[1724122710703,1.35687221,60610.0,60609.0,0.0029075]
[1724122711694,1.23319834,60610.0,60609.0,0.0029075]
[1724122714824,1.35687437,60610.0,60609.0,0.0029075]
[1724122715197,1.23319834,60610.0,60609.0,0.0029075]
[1724122717599,1.33215355,60610.0,60609.0,0.0029075]
[1724122718130,0.90222034,60610.0,60609.0,0.0029075]
[1724122718350,0.04455008,60610.0,60609.0,0.3959985]
[1724122719079,0.04455008,60610.0,60609.0,1.3859475]
[1724122719505,0.04455008,60610.0,60609.0,1.3849475]
[1724122719506,0.03455008,60610.0,60609.0,1.3849475]
[1724122719918,0.04255008,60610.0,60609.0,1.3859475]
[1724122720344,0.03455008,60610.0,60609.0,1.3849475]
[1724122720729,0.02555008,60610.0,60609.0,1.3849475]
[1724122720932,0.02855008,60610.0,60609.0,1.3849475]
[1724122721308,0.02555008,60610.0,60609.0,1.3849475]
[1724122721508,0.02555008,60610.0,60609.0,1.3869475]
[1724122725605,0.02555008,60610.0,60609.0,1.2965475]
[1724122725827,0.02555008,60610.0,60609.0,1.3869475]
[1724122736573,0.02555008,60610.0,60609.0,2.1069475]
[1724122736963,0.02555008,60610.0,60609.0,1.7769645]
[1724122737175,0.02555008,60610.0,60609.0,1.0569645]
[1724122740175,0.02555008,60610.0,60609.0,0.7269815]
[1724122741501,0.02555008,60610.0,60609.0,1.0569645]
[1724122742649,0.02555008,60610.0,60609.0,1.3869475]
[1724122743244,0.02555008,60610.0,60609.0,2.1169475]
[1724122743801,0.02555008,60610.0,60609.0,2.1159475]
[1724122744042,0.02555008,60610.0,60609.0,2.1139475]
[1724122744246,0.02755008,60610.0,60609.0,2.1399475]
[1724122744447,0.02755008,60610.0,60609.0,2.1419475]
[1724122744680,0.02555008,60610.0,60609.0,2.1139475]
[1724122744881,0.02655008,60610.0,60609.0,2.1279475]
[1724122745114,0.02755008,60610.0,60609.0,2.1389475]
[1724122746642,0.02655008,60610.0,60609.0,2.1249475]
[1724122746844,0.02555008,60610.0,60609.0,2.1139475]
[1724122747086,0.02555008,60610.0,60609.0,2.1269475]
[1724122747264,0.02655008,60610.0,60609.0,2.1379475]
[1724122747463,0.02655008,60610.0,60609.0,2.1249475]
[1724122748139,0.02555008,60610.0,60609.0,2.1269475]
[1724122748595,0.02655008,60610.0,60609.0,2.1379475]
[1724122749948,0.02555008,60610.0,60609.0,2.1139475]
[1724122750103,0.02555008,60610.0,60609.0,2.1279475]
[1724122750303,0.02655008,60610.0,60609.0,2.1399475]
[1724122750829,0.02655008,60610.0,60609.0,1.4099475]
[1724122753409,0.02655008,60610.0,60609.0,2.2899475]
[1724122753598,0.02655008,60610.0,60609.0,1.4099475]
[1724122756066,0.02655008,60610.0,60609.0,1.3979475]
[1724122756067,0.02555008,60610.0,60609.0,1.3979475]
[1724122756275,0.02655008,60610.0,60609.0,1.4079475]
[1724122756473,0.02655008,60610.0,60609.0,1.3939475]
[1724122757041,0.02755008,60610.0,60609.0,1.4069475]
[1724122757147,0.02755008,60610.0,60609.0,2.2769475]
[1724122757341,0.02755008,60610.0,60609.0,2.2779475]
[1724122757571,0.02755008,60610.0,60609.0,2.2799475]
[1724122758379,0.02755008,60610.0,60609.0,2.2769475]
[1724122758982,0.02755008,60610.0,60609.0,2.2799475]
[1724122759184,0.02755008,60610.0,60609.0,2.2769475]
[1724122760028,0.02755008,60610.0,60609.0,2.2779475]
[1724122760225,0.02755008,60610.0,60609.0,2.2769475]
[1724122760598,0.02755008,60610.0,60609.0,2.6079305]
[1724122760795,0.02755008,60610.0,60609.0,2.6069305]
[1724122761008,0.02472408,60614.0,60609.0,2.6069305]
[1724122761009,0.01005565,60631.0,60616.0,1.484752]
[1724122761205,0.01005565,60631.0,60616.0,2.66816793]
[1724122761206,0.15659449,60617.0,60616.0,2.66816793]
[1724122761379,0.15659449,60617.0,60616.0,2.69280151]
[1724122761520,0.15659449,60617.0,60616.0,3.08411995]
[1724122761722,0.15659449,60617.0,60616.0,3.08311995]
[1724122762330,0.15659449,60617.0,60616.0,2.98758563]
[1724122762545,0.15659449,60617.0,60616.0,3.08611995]
[1724122762745,0.15659449,60617.0,60616.0,3.08411995]
[1724122762951,0.02944207,60617.0,60616.0,3.08611995]
[1724122763148,0.03044207,60617.0,60616.0,3.10011995]
[1724122763563,0.03044207,60617.0,60616.0,3.01458563]
[1724122764003,0.03044207,60617.0,60616.0,3.02858563]
[1724122764207,0.02944207,60617.0,60616.0,3.13780366]
[1724122764407,0.02944207,60617.0,60616.0,3.11080366]
[1724122764608,0.02944207,60617.0,60616.0,3.12480366]
[1724122765269,0.02944207,60617.0,60616.0,3.10012607]
[1724122765805,0.02944207,60617.0,60616.0,3.11412607]
[1724122766334,0.02944207,60617.0,60616.0,3.10012607]
[1724122766738,0.02944207,60617.0,60616.0,3.11412607]
[1724122766945,0.02944207,60617.0,60616.0,3.10012607]
[1724122767313,0.02944207,60617.0,60616.0,3.00157948]
[1724122767514,0.02944207,60617.0,60616.0,3.01557948]
[1724122767729,0.02944207,60617.0,60616.0,3.00157948]
[1724122767931,0.02944207,60617.0,60616.0,3.01557948]
[1724122768131,0.02944207,60617.0,60616.0,3.00157948]
[1724122768334,0.02944207,60617.0,60616.0,3.07245]
[1724122768556,0.02944207,60617.0,60616.0,3.08645]
[1724122768940,0.02944207,60617.0,60616.0,3.07245]
[1724122769146,0.02944207,60617.0,60616.0,2.70677129]
[1724122769346,0.02944207,60617.0,60616.0,2.64690077]
[1724122769551,0.02944207,60617.0,60616.0,2.565952]
[1724122769824,0.02944207,60617.0,60616.0,2.537952]
[1724122770308,0.02944207,60617.0,60616.0,2.565952]
[1724122770508,0.02944207,60617.0,60616.0,2.551952]
[1724122770618,0.02944207,60617.0,60616.0,2.537952]
[1724122770824,0.02944207,60617.0,60616.0,2.551952]
[1724122771472,0.02944207,60617.0,60616.0,2.564952]
[1724122771626,0.02944207,60617.0,60616.0,2.551952]
[1724122772046,0.02944207,60617.0,60616.0,2.537952]
[1724122772615,0.02944207,60617.0,60616.0,2.548952]
[1724122772959,0.02944207,60617.0,60616.0,2.537952]
[1724122773185,0.02944207,60617.0,60616.0,2.561952]
[1724122773748,0.02944207,60617.0,60616.0,2.550952]
[1724122773947,0.02944207,60617.0,60616.0,2.548952]
[1724122774362,0.02944207,60617.0,60616.0,2.561952]
[1724122775313,0.02944207,60617.0,60616.0,2.550952]
[1724122775715,0.02944207,60617.0,60616.0,2.561952]
[1724122776117,0.02944207,60617.0,60616.0,2.537952]
[1724122776577,0.02944207,60617.0,60616.0,2.561952]
[1724122776707,0.02944207,60617.0,60616.0,2.548952]
[1724122776894,0.02944207,60617.0,60616.0,2.550952]
[1724122777340,0.02944207,60617.0,60616.0,2.59819514]
[1724122777546,0.02944207,60617.0,60616.0,2.561952]
[1724122778549,0.02944207,60617.0,60616.0,2.550952]
[1724122779127,0.02944207,60617.0,60616.0,2.537952]
[1724122779339,0.02944207,60617.0,60616.0,2.550952]
[1724122779529,0.02944207,60617.0,60616.0,2.564952]
[1724122779739,0.02944207,60617.0,60616.0,2.550952]
[1724122780046,0.02944207,60617.0,60616.0,2.537952]
[1724122780243,0.02944207,60617.0,60616.0,2.561952]
[1724122780472,0.02944207,60617.0,60616.0,2.548952]
[1724122780791,0.02944207,60617.0,60616.0,2.562952]
[1724122781304,0.02944207,60617.0,60616.0,2.78354272]
[1724122781537,0.02944207,60617.0,60616.0,2.8081637]
[1724122781733,0.02944207,60617.0,60616.0,2.72330077]
[1724122781939,0.02944207,60617.0,60616.0,2.78554005]
[1724122782160,0.02944207,60617.0,60616.0,2.73630077]
[1724122782363,0.02944207,60617.0,60616.0,2.72230077]
[1724122782642,0.02944207,60617.0,60616.0,2.72330077]
[1724122783447,0.02944207,60617.0,60616.0,2.758537]
[1724122783644,0.02944207,60617.0,60616.0,2.772537]
[1724122783824,0.02944207,60617.0,60616.0,2.786537]
[1724122784028,0.02944207,60617.0,60616.0,1.966537]
[1724122784231,0.02944207,60617.0,60616.0,2.686537]
[1724122784857,0.02944207,60617.0,60616.0,2.672537]
[1724122785062,0.02944207,60617.0,60616.0,2.686537]
[1724122785218,0.02944207,60617.0,60616.0,2.672537]
[1724122785635,0.02944207,60617.0,60616.0,2.63730077]
[1724122785836,0.02944207,60617.0,60616.0,2.67255371]
[1724122786203,0.02944207,60617.0,60616.0,2.68655371]
[1724122786419,0.02944207,60617.0,60616.0,2.68755371]
[1724122787017,0.02944207,60617.0,60616.0,2.62430077]
[1724122787194,0.02944207,60617.0,60616.0,2.62330077]
[1724122787401,0.02944207,60617.0,60616.0,2.69718018]
[1724122787579,0.02944207,60617.0,60616.0,3.06286601]
[1724122788079,0.02944207,60617.0,60616.0,3.21286601]
[1724122789194,0.02944207,60617.0,60616.0,3.22686601]
[1724122789832,0.02944207,60617.0,60616.0,3.21286601]
[1724122789987,0.02944207,60617.0,60616.0,3.22686601]
[1724122790182,0.02944207,60617.0,60616.0,3.23699561]
[1724122790383,0.02944207,60617.0,60616.0,3.22302704]
[1724122791171,0.02944207,60617.0,60616.0,3.13511626]
[1724122791578,0.02944207,60617.0,60616.0,3.14911626]
[1724122792194,0.02944207,60617.0,60616.0,3.13911626]
[1724122792366,0.02944207,60617.0,60616.0,3.15311626]
[1724122793058,0.02944207,60617.0,60616.0,3.15611626]
[1724122793265,0.02944207,60617.0,60616.0,3.14211626]
[1724122793466,0.02944207,60617.0,60616.0,3.15611626]
[1724122794325,0.02944207,60617.0,60616.0,3.25466396]
[1724122794735,0.02944207,60617.0,60616.0,3.15611626]
[1724122795154,0.02944207,60617.0,60616.0,3.15611615]
[1724122795378,0.02944207,60617.0,60616.0,3.25469829]
[1724122795602,0.02944207,60617.0,60616.0,3.27931699]
[1724122795811,0.02944207,60617.0,60616.0,3.27431699]
[1724122795994,0.02944207,60617.0,60616.0,3.27431466]
[1724122798371,0.02944207,60617.0,60616.0,3.15111615]
[1724122798486,0.02944207,60617.0,60616.0,3.27435014]
[1724122799293,0.02944207,60617.0,60616.0,2.50211089]
[1724122799502,0.02944207,60617.0,60616.0,1.268207]
[1724122802242,0.02944207,60617.0,60616.0,1.254207]
[1724122802409,0.02944207,60617.0,60616.0,1.240207]
[1724122802563,0.02944207,60617.0,60616.0,1.268207]
[1724122802767,0.02944207,60617.0,60616.0,1.31749745]
[1724122803207,0.02944207,60617.0,60616.0,1.30349745]
[1724122803391,0.02944207,60617.0,60616.0,1.31449745]
[1724122803990,0.02944207,60617.0,60616.0,1.68240958]
[1724122804191,0.02944207,60617.0,60616.0,2.46540958]
[1724122804646,0.02944207,60617.0,60616.0,2.58866861]
[1724122805166,0.02944207,60617.0,60616.0,2.46540958]
[1724122805570,0.02944207,60617.0,60616.0,2.39990958]
[1724122805984,0.02944207,60617.0,60616.0,2.72985458]
[1724122806393,0.02944207,60617.0,60616.0,2.39990958]
[1724122806902,0.02944207,60617.0,60616.0,2.37590958]
[1724122807331,0.03144207,60617.0,60616.0,2.38990958]
[1724122808131,0.03144207,60617.0,60616.0,2.72285458]
[1724122808399,0.03144207,60617.0,60616.0,2.85865458]
[1724122808622,0.02944207,60617.0,60616.0,2.84465458]
[1724122809135,0.03044207,60617.0,60616.0,2.85865458]
[1724122809977,0.02944207,60617.0,60616.0,3.03000335]
[1724122810172,0.02944207,60617.0,60616.0,3.01700335]
[1724122810384,0.03044207,60617.0,60616.0,3.01700335]
[1724122810782,0.03044207,60617.0,60616.0,3.03100335]
[1724122811011,0.03044207,60617.0,60616.0,3.01700335]
[1724122811423,0.03044207,60617.0,60616.0,3.03000335]
[1724122811764,0.02944207,60617.0,60616.0,3.01700335]
[1724122811907,0.03044207,60617.0,60616.0,3.01700335]
[1724122812351,0.03044207,60617.0,60616.0,3.03300335]
[1724122812352,0.02944207,60617.0,60616.0,3.03300335]
[1724122812553,0.02944207,60617.0,60616.0,3.03000335]
[1724122812709,0.03044207,60617.0,60616.0,3.03000335]
[1724122813112,0.03044207,60617.0,60616.0,2.89120335]
[1724122813930,0.03044207,60617.0,60616.0,2.87720335]
[1724122814159,0.03044207,60617.0,60616.0,2.89120335]
[1724122814353,0.03044207,60617.0,60616.0,2.89220335]
[1724122814562,0.03044207,60617.0,60616.0,2.88020335]
[1724122814563,0.02944207,60617.0,60616.0,2.88020335]
[1724122814772,0.02944207,60617.0,60616.0,2.89420335]
[1724122814974,0.03044207,60617.0,60616.0,2.89420335]
[1724122815177,0.03044207,60617.0,60616.0,2.88020335]
[1724122815390,0.03044207,60617.0,60616.0,2.89420335]
[1724122815950,0.02944207,60617.0,60616.0,2.89420335]
[1724122816165,0.02944207,60617.0,60616.0,3.00420335]
[1724122816728,0.02944207,60617.0,60616.0,3.00418879]
[1724122817308,0.02944207,60617.0,60616.0,3.23252588]
[1724122817500,0.02944207,60617.0,60616.0,3.23343338]
[1724122818877,0.02944207,60617.0,60616.0,3.23043338]
[1724122819755,0.02944207,60617.0,60616.0,3.08229629]
[1724122820156,0.02944207,60617.0,60616.0,2.91229629]
[1724122820602,0.02944207,60617.0,60616.0,2.83209629]
[1724122821207,0.02944207,60617.0,60616.0,2.83209208]
[1724122824575,0.02944207,60617.0,60616.0,2.83509208]
[1724122824774,0.02944207,60617.0,60616.0,2.83209208]
[1724122825166,0.02944207,60617.0,60616.0,2.83309208]
[1724122825365,0.02944207,60617.0,60616.0,2.83209208]
[1724122829477,0.02935958,60617.0,60616.0,2.83209208]
[1724122830375,0.02935958,60617.0,60616.0,2.83209099]
[1724122830624,0.02935958,60617.0,60616.0,2.83209092]
[1724122835143,0.02935958,60617.0,60616.0,2.83209084]
[1724122836211,0.02935958,60617.0,60616.0,2.98209084]
[1724122840053,0.02935958,60617.0,60616.0,2.26499018]
[1724122840193,0.02935958,60617.0,60616.0,3.00499018]
[1724122841422,0.02382968,60623.0,60622.0,0.494869]
[1724122841621,0.11724776,60623.0,60622.0,1.07448424]
[1724122841826,0.11724776,60623.0,60622.0,1.73431024]
[1724122842085,0.11724776,60623.0,60622.0,1.61077691]
[1724122842359,0.11724776,60623.0,60622.0,1.73432216]
[1724122842559,0.11724776,60623.0,60622.0,1.73431534]
[1724122842866,0.02382968,60623.0,60622.0,1.73431534]
[1724122843426,0.02382968,60623.0,60622.0,1.74831534]
[1724122843625,0.10372968,60623.0,60622.0,1.74831534]
[1724122843829,0.10472968,60623.0,60622.0,1.74931534]
[1724122844030,0.10472968,60623.0,60622.0,2.48931534]
[1724122844236,0.10372968,60623.0,60622.0,2.47431534]
[1724122844462,0.10372968,60623.0,60622.0,2.35077691]
[1724122844661,0.10372968,60623.0,60622.0,2.36377691]
[1724122844662,0.10472968,60623.0,60622.0,2.36377691]
[1724122844836,0.17022968,60623.0,60622.0,2.36377691]
[1724122846493,0.17022968,60623.0,60622.0,2.35077691]
[1724122846932,0.17022968,60623.0,60622.0,2.36477691]
[1724122847341,0.17022968,60623.0,60622.0,2.48831534]
[1724122848120,0.10472968,60623.0,60622.0,2.07822834]
[1724122848522,0.02482968,60623.0,60622.0,2.07822834]
[1724122849137,0.02482968,60623.0,60622.0,2.07829088]
[1724122851319,0.02482968,60623.0,60622.0,1.95467417]
[1724122851477,0.02482968,60623.0,60622.0,1.95567417]
[1724122851693,0.02482968,60623.0,60622.0,2.78567417]
[1724122852279,0.02482968,60623.0,60622.0,2.78467417]
[1724122852523,0.02482968,60623.0,60622.0,2.78567417]
[1724122852885,0.02482968,60623.0,60622.0,2.78467417]
[1724122853950,0.00825,60629.0,60628.0,1.15758]
[1724122854147,0.00825,60641.0,60638.0,0.329826]
[1724122854275,0.00825,60641.0,60638.0,1.62406649]
[1724122854460,0.00825,60641.0,60638.0,1.574617]
[1724122854676,0.00825,60641.0,60638.0,1.64879124]
[1724122855307,0.00825,60641.0,60638.0,2.1115425]
[1724122855703,0.00825,60641.0,60638.0,2.21144149]
[1724122855962,0.00825,60641.0,60638.0,2.21044149]
[1724122856402,0.00825,60641.0,60638.0,2.1115425]
[1724122856811,0.00825,60641.0,60638.0,2.19953945]
[1724122857005,0.00825,60641.0,60638.0,2.18553945]
[1724122857394,0.00825,60641.0,60638.0,1.498217]
[1724122857621,0.08776,60640.0,60638.0,1.574617]
[1724122857828,0.08776,60640.0,60638.0,1.62392982]
[1724122858047,0.08776,60640.0,60638.0,1.63792982]
[1724122858216,0.00826,60640.0,60638.0,1.588617]
[1724122859102,0.00826,60640.0,60638.0,1.589617]
[1724122861026,0.00826,60640.0,60638.0,1.90406577]
[1724122861215,0.00826,60640.0,60638.0,1.95235534]
[1724122861426,0.00826,60640.0,60639.0,1.48519]
[1724122861603,0.00826,60640.0,60639.0,1.65653877]
[1724122861807,0.00826,60640.0,60639.0,1.65553877]
[1724122862192,0.00825,60641.0,60640.0,1.485167]
[1724122862402,0.00825,60641.0,60640.0,2.44681577]
[1724122863152,0.00825,60641.0,60640.0,2.49810404]
[1724122863361,0.00826,60642.0,60641.0,1.48714]
[1724122863561,0.00825,60649.0,60648.0,0.001]
[1724122863780,0.1643,60658.0,60656.0,0.329728]
[1724122863781,0.2472,60658.0,60656.0,0.329728]
[1724122863986,0.2472,60658.0,60656.0,1.154048]
[1724122864392,0.1,60658.0,60656.0,1.32539677]
[1724122864728,0.095,60657.0,60656.0,1.32539677]
[1724122865165,0.095,60657.0,60656.0,1.65512477]
[1724122865375,0.095,60657.0,60656.0,1.72042477]
[1724122866208,0.095,60657.0,60656.0,2.55342477]
[1724122866457,0.095,60657.0,60656.0,2.48512477]
[1724122866631,0.171,60657.0,60656.0,1.65512477]
[1724122866832,0.171,60657.0,60656.0,1.66912477]
[1724122867188,0.171,60657.0,60656.0,1.65512477]